Cogmind - Beta 16 @@@ ROGUE MODE // 2025.11.21 @ 15:45:14 Player: Minty Result: Destroyed by S-43 Plague with Heavy Machine Gun Performance ------------- Evolutions (7) 3500 Regions Visited (19) 3800 Robots Destroyed (125) 625 Value Destroyed (5982) 5982 Prototype IDs (7) 140 Alien Tech Used (0) 0 Bonus (2323) 2323 TOTAL SCORE: 16370 Bonus ------- High Alert Combat Kills 83 Follower Combat Kills 383 Entered Garrisons 600 Used RIF Installer 1000 Entered DSFs 500 Friendly Fire -243 Cogmind --------- Core Integrity 0/1300 Matter 35/300 Energy 99/100 System Corruption 28% Temperature Cool (0) Movement Core (50) Location -3/Garrison Parts ------- > --- POWER (2) -------- (None) > --- PROPULSION (6) --- Improved Gyrokinetic Inverter > --- UTILITY (11) ----- Enhanced Optical Array Enhanced Optical Array Improved Targeting Computer > --- WEAPON (2) ------- (None) > --- INVENTORY (5) ---- Phase Gun Neutron Cannon Nova Cannon Helical Railgun Improved Remote Datajack Peak State ------------ > --- POWER ------------ Light Antimatter Reactor Reinforced Antimatter Reactor > --- PROPULSION ------- Antigrav Array Antigrav Array > --- UTILITY ---------- Medium Storage Unit Enhanced Optical Array Enhanced Optical Array Enhanced Optical Array Advanced Sensor Array Advanced Signal Interpreter Relay Coupler [Grunt] Relay Coupler [Sentry] Relay Coupler [Specialist] Long-range Tractor Beam Advanced Recalibrator > --- WEAPON ----------- Powered Hammer > --- INVENTORY -------- Medium Armored Exoskeleton Medium Armored Exoskeleton Phase Gun Phase Gun Improved Remote Datajack Improved Remote Datajack [Rating: 108] Favorites ----------- Power Light Ion Engine Engine Light Ion Engine Power Core Light Fission Core Reactor Particle Reactor Propulsion Wheel Treads Heavy Treads Leg Flexi-carbon Leg Wheel Wheel Hover Unit Antigrav Array Flight Unit Q-thruster Utility Medium Storage Unit Device Improved Cooling System Storage Medium Storage Unit Processor Enhanced Optical Array Hackware Relay Coupler [NC] Protection Damper Plating Weapon Heavy Linear Accelerator Energy Gun Particle Gun Energy Cannon Heavy Plasma Cannon Ballistic Gun Assault Rifle Ballistic Cannon Heavy Linear Accelerator Launcher Advanced Concussive RPG Special Weapon Improved Remote Datajack Impact Weapon Powered Hammer Slashing Weapon Phasing Sabre Build | -11 -10 -9 -8 -7 -7 -6 -6 -6 -6 -6 -5 -5 -4 -4 -4 -3 -3 -3 -3 ------- Run | Yrd Mat Mat Mat Fac DSF Fac Was Fac Gar Fac Fac Ext Fac Upp Upp Res Gar Res Gar Slots Evolved 14 | . . 2 2 2 . 2 . . . . 2 . 2 . . 2 . . . Power 1 | . . . . . . . . . . . . . . . . 1 . . . Propulsion 4 | . . . . 2 . 1 . . . . . . 1 . . . . . . Utility 9 | . . 2 2 . . 1 . . . . 2 . 1 . . 1 . . . Weapon . | . . . . . . . . . . . . . . . . . . . . Parts Attached 202 | . 9 14 16 . 10 . 11 3 15 3 13 49 21 . . 16 7 15 . Power 23 | . . 2 1 . 1 . 1 1 2 . 3 7 1 . . 3 . 1 . Engine 8 | . . 2 1 . . . . . 1 . . 4 . . . . . . . Core 8 | . . . . . 1 . . 1 . . 3 3 . . . . . . . Reactor 7 | . . . . . . . 1 . 1 . . . 1 . . 3 . 1 . Propulsion 62 | . 4 2 1 . 8 . 3 2 3 . 4 19 5 . . 2 2 7 . Treads 13 | . . 2 1 . . . 1 . . . . 7 . . . 1 . 1 . Leg 15 | . 2 . . . . . . . 3 . . 6 3 . . 1 . . . Wheel 13 | . 2 . . . 4 . . 2 . . . 5 . . . . . . . Hover 8 | . . . . . . . . . . . 1 1 2 . . . 2 2 . Flight 13 | . . . . . 4 . 2 . . . 3 . . . . . . 4 . Utility 71 | . 2 7 9 . . . 6 . 7 . 5 15 7 . . 5 4 4 . Device 29 | . 1 5 2 . . . 1 . 1 . 2 8 2 . . 3 1 3 . Storage 4 | . 1 . 1 . . . . . . . . . 2 . . . . . . Processor 13 | . . 1 2 . . . 1 . 1 . 1 1 3 . . 2 . 1 . Hackware 14 | . . . 1 . . . . . 5 . 2 3 . . . . 3 . . Protection 11 | . . 1 3 . . . 4 . . . . 3 . . . . . . . Artifact . | . . . . . . . . . . . . . . . . . . . . Weapon 46 | . 3 3 5 . 1 . 1 . 3 3 1 8 8 . . 6 1 3 . Energy Gun 16 | . 1 3 . . . . . . . 1 . 3 6 . . 2 . . . Energy Cannon 3 | . . . . . . . . . . 1 . . . . . . . 2 . Ballistic Gun 8 | . 2 . 1 . . . . . 2 . . . . . . 2 . 1 . Ballistic Cannon 6 | . . . 4 . . . 1 . . 1 . . . . . . . . . Launcher 2 | . . . . . 1 . . . . . . . 1 . . . . . . Special Weapon 5 | . . . . . . . . . 1 . 1 . 1 . . 1 1 . . Impact Weapon 2 | . . . . . . . . . . . . 1 . . . 1 . . . Slashing Weapon 4 | . . . . . . . . . . . . 4 . . . . . . . Piercing Weapon . | . . . . . . . . . . . . . . . . . . . . Special Melee Weapon . | . . . . . . . . . . . . . . . . . . . . Unidentified Prototypes 7 | . . . 1 . . . 1 . . 1 . . . . . 1 . 3 . Corrupted Parts 8 | . . . . . . . . . . . . 8 . . . . . . . System Corruption 29 | . . . . . . . . . . . . 29 . . . . . . . Parts Lost 127 | . . 11 9 . 2 2 2 2 7 3 3 32 24 1 . 7 10 6 6 Power 18 | . . 3 1 . 1 . . 1 . . 2 4 3 . . 1 2 . . Propulsion 45 | . . 3 3 . 1 2 1 1 3 2 1 14 6 . . 1 2 2 3 Utility 44 | . . 2 5 . . . 1 . 3 1 . 10 8 1 . 3 4 3 3 Weapon 20 | . . 3 . . . . . . 1 . . 4 7 . . 2 2 1 . Highest Loss Streak 15 | . . 5 5 . 2 2 2 2 4 3 2 12 15 1 . 7 6 4 6 To Critical Strikes . | . . . . . . . . . . . . . . . . . . . . Average Backups 6 | 6 8 8 11 5 4 4 5 7 6 5 6 5 6 5 5 5 5 4 5 Power . | 1 1 1 1 1 . . . . . . . . . . . . . . . Propulsion . | 4 3 . . . . . . . . . . . . . . 1 1 . . Utility 3 | . 3 5 6 1 1 2 1 3 4 5 5 2 3 3 3 1 . . . Weapon 1 | 1 . 1 3 2 1 1 2 3 . . 1 . 1 . . 1 2 3 4 Tool/Special . | . . . . . . . . . . . . . . . . . . . . Unused Backups 24 | . 3 . 9 . 1 . 1 . 5 . . 4 1 . . . . . . Power 2 | . . . . . 1 . . . . . . 1 . . . . . . . Propulsion 5 | . 2 . . . . . 1 . . . . 1 1 . . . . . . Utility 9 | . . . 6 . . . . . 2 . . 1 . . . . . . . Weapon 7 | . 1 . 2 . . . . . 3 . . 1 . . . . . . . Tool/Special 1 | . . . 1 . . . . . . . . . . . . . . . . Average Slot Usage (%) 71 | . 95 87 91 15 31 26 53 59 66 70 70 81 76 34 31 51 59 53 45 Engine 3 | . 14 10 8 . . . . . 1 . . 1 3 . . . . . . Core 1 | . . . . . . . . 1 4 . 3 3 . . . . . . . Reactor 1 | . . . . . . . 4 4 . 6 1 . . . . 2 5 1 3 Treads 4 | . . 6 15 . . . 4 6 4 . . 4 16 . . 3 . . . Leg 6 | . 27 . . . . . . . 7 9 1 7 . 10 10 6 1 . . Wheel 3 | . . 8 . . 9 . . . 7 3 . 6 . . . . . . . Hover 1 | . . 2 . . . . . . . . 2 . . . . . 6 7 8 Flight 3 | . . . . . 4 13 13 11 2 . 10 1 . . . . . 6 6 Device 9 | . 10 16 15 . . . 4 6 4 6 6 14 13 3 . 4 7 9 3 Storage 5 | . 14 11 7 . . . 5 6 6 6 5 1 6 . . 3 3 . . Processor 6 | . . 10 9 15 15 13 5 . 1 6 5 7 6 15 15 17 19 18 18 Hackware 8 | . . . 8 . . . . . 8 23 24 18 8 5 5 3 10 5 3 Protection 3 | . . 3 9 . . . 6 13 6 . . 1 8 . . . . . . Energy Gun 2 | . 4 14 2 . . . . . . 1 . 2 6 . . 2 . . . Ballistic Gun 2 | . 23 3 . . . . . . . . . . . . . 4 . . . Ballistic Cannon 2 | . . . 14 . 1 . 4 6 4 1 2 . . . . . . . . Peak Build Rating 108 | 6 9 14 34 7 19 16 83 83 80 46 49 75 81 61 56 107 108 92 79 Average Rating 49 | 6 7 11 26 7 12 12 70 81 64 39 39 49 68 59 56 80 88 73 69 On Entrance 42 | 6 6 9 14 7 7 16 10 83 80 36 37 46 75 61 56 56 94 65 79 Avg Prop Armor Cover (%) 15 | . . . . . 41 . 5 1 9 12 8 14 44 44 45 23 44 16 10 Naked Turns . | . . . . . . . . . . . . . . . . . . . . Heaviest Build 108 | 11 19 24 73 . 5 . 108 108 99 44 37 44 66 1 . 56 52 26 19 Greatest Support 141 | 20 20 40 40 3 36 9 70 70 70 35 29 141 141 3 3 100 52 38 26 Greatest Overweight (x) 9 | . 6 4 3 . . . 1 9 9 4 1 3 3 . . 1 . . . Average Overweight (x) . | . . . . . . . . 1 4 2 . . . . . . . . . Largest Inventory Capacity 15 | 8 10 10 15 5 5 5 10 10 10 10 10 10 10 5 5 10 10 10 5 Average Capacity 8 | 8 9 10 12 5 5 5 9 10 10 10 10 6 8 5 5 9 9 5 5 Most Carried 15 | 6 10 10 15 5 5 5 10 10 10 10 10 10 10 5 5 10 10 5 5 Average Carried 8 | 6 8 8 11 4 4 4 7 10 9 9 9 5 6 5 5 7 8 4 5 Final Capacity 10 | 8 10 10 5 5 5 5 10 10 10 10 10 5 5 5 5 10 5 5 5 Final Carried 10 | 6 10 10 5 5 4 5 10 10 10 10 8 5 5 5 5 9 4 5 5 Class Distribution -------------------- 51% | Scavenger-Mutant 31% | Mutant 8% | Bothacker-Mutant 3% | Bothacker-Sprinter Dominant Class ---------------- Mutant | -10/Materials Scavenger-Mutant | -9/Materials Scavenger-Mutant | -8/Materials Mutant | -7/Factory Mutant | -7/DSF Sprinter | -6/Factory Scavenger-Mutant | -6/Waste Scavenger-Mutant | -6/Factory Scavenger-Mutant | -6/Garrison Mutant | -6/Factory Bothacker-Sprinter | -5/Factory Scavenger-Mutant | -5/Extension Scavenger-Mutant | -4/Factory Mutant | -4/Upper Caves Mutant | -4/Upper Caves Mutant | -3/Research Scout | -3/Garrison Mutant | -3/Research Mutant | -3/Garrison Resources | -11 -10 -9 -8 -7 -7 -6 -6 -6 -6 -6 -5 -5 -4 -4 -4 -3 -3 -3 -3 ----------- Run | Yrd Mat Mat Mat Fac DSF Fac Was Fac Gar Fac Fac Ext Fac Upp Upp Res Gar Res Gar Matter Collected 4739 | 200 277 283 551 . 20 . 602 257 640 131 157 974 287 31 . 66 263 . . Remotely 571 | . . . 204 . . . . . . . . 146 . . . . 221 . . Salvage Created 4959 | . 288 549 422 . 19 . 185 89 465 116 33 1021 1069 . . 378 325 . . Parts 220 | . 32 34 19 . 7 . 2 11 15 1 6 40 33 . . 14 6 . . Haulers Intercepted 1 | . . . . . . . . . . . . 1 . . . . . . . Recyclers Shooed 2 | . . . 1 . . . . . . . . . 1 . . . . . . Parts Field Recycled . | . . . . . . . . . . . . . . . . . . . . Retrieved Matter . | . . . . . . . . . . . . . . . . . . . . Parts Self-Destructed . | . . . . . . . . . . . . . . . . . . . . Prevented . | . . . . . . . . . . . . . . . . . . . . Parts Restored . | . . . . . . . . . . . . . . . . . . . . Kills | -11 -10 -9 -8 -7 -7 -6 -6 -6 -6 -6 -5 -5 -4 -4 -4 -3 -3 -3 -3 ------- Run | Yrd Mat Mat Mat Fac DSF Fac Was Fac Gar Fac Fac Ext Fac Upp Upp Res Gar Res Gar Combat Hostiles Destroyed 101 | . 7 15 13 . 2 . . 3 16 2 5 11 19 . . 5 3 . . Melee 10 | . . . . . . . . . . . . 6 3 . . . 1 . . Guns 37 | . 7 14 1 . . . . . . . . . 11 . . 4 . . . Cannons 42 | . . . 12 . 2 . . 3 16 1 5 3 . . . . . . . AOE 4 | . . 1 . . . . . . . . . . 3 . . . . . . Classes Destroyed 16 | . 7 2 1 . 1 . . . 1 . . 3 . . . 1 . . . Worker 4 | . 1 . . . . . . 2 . . . 1 . . . . . . . Builder 4 | . 1 . . . . . . 2 . . . 1 . . . . . . . Tunneler 1 | . 1 . . . . . . . . . . . . . . . . . . Hauler 1 | . . . . . . . . . . . . 1 . . . . . . . Recycler 4 | . . 1 2 . . . . . . . . 1 . . . . . . . Operator 4 | . 2 1 . . . . . . . . . 1 . . . . . . . Watcher 5 | . 1 1 1 . . . . . . . . 2 . . . . . . . Swarmer 25 | . 3 7 3 . . . . . 3 . 5 . 4 . . . . . . Cutter 2 | . . . . . 2 . . . . . . . . . . . . . . Grunt 46 | . 4 6 8 . . . . . 10 2 . 4 10 . . 1 1 . . Brawler 1 | . . . . . . . . . . . . . . . . 1 . . . Duelist 2 | . . . . . . . . . . . . . 1 . . 1 . . . Sentry 5 | . . 2 1 . . . . . . . . 2 . . . . . . . Hunter 16 | . . . 1 . . . . 3 2 . . 4 2 . . 2 2 . . Programmer 3 | . . . . . . . . . 1 . . . 2 . . . . . . Behemoth 1 | . . . . . . . . . . . . 1 . . . . . . . Butcher 1 | . . . . . . . . . . . . 1 . . . . . . . Best Kill Streak 12 | . 4 12 7 . 2 . . 5 7 2 5 4 5 . . 2 3 . . Combat Bots Only 12 | . 4 12 6 . 2 . . 1 7 2 5 3 5 . . 2 3 . . Max Kills in Single Turn 3 | . 2 1 2 . 1 . . 1 1 1 1 1 3 . . 1 1 . . Gunslinging . | . . . . . . . . . . . . . . . . . . . . Exploded 3 | . . 1 . . . . . . . . . . 3 . . . . . . Melee 1 | . . . . . . . . . . . . 1 1 . . . 1 . . Uniques/NPCs Destroyed . | . . . . . . . . . . . . . . . . . . . . Combat | -11 -10 -9 -8 -7 -7 -6 -6 -6 -6 -6 -5 -5 -4 -4 -4 -3 -3 -3 -3 -------- Run | Yrd Mat Mat Mat Fac DSF Fac Was Fac Gar Fac Fac Ext Fac Upp Upp Res Gar Res Gar Hostile Shots Fired 1637 | . 38 100 169 . 20 21 . 59 173 15 76 201 294 16 . 135 170 128 22 Missed 541 | . 18 29 45 . 10 14 . 17 42 3 30 58 80 6 . 44 63 77 5 Hits 1096 | . 20 71 124 . 10 7 . 42 131 12 46 143 214 10 . 91 107 51 17 Melee 36 | . . . 8 . 6 . . . . . . 4 . . . 17 . 1 . Projectile 1060 | . 20 71 116 . 4 7 . 42 131 12 46 139 214 10 . 74 107 50 17 Critical Strikes 53 | . 1 . 8 . 5 . . 1 1 1 1 3 13 . . 11 7 . 1 Part Disruptions 1 | . . . . . . . . . . . . . . . . 1 . . . Damage Taken 20124 | . 226 785 2025 . 247 128 10 728 2294 230 634 2914 3964 172 . 2280 2211 893 383 Core 4300 | . 43 220 369 . 70 31 5 54 132 39 279 700 998 39 . 248 596 343 134 Absorbed by Shields 248 | . . . . . . . . . . . 34 194 . . . . 20 . . Reduced by Siege Mode 25 | . . . . . . . . . 25 . . . . . . . . . . Ignored by Resistances 253 | . . . 23 . . . . . 58 . 100 . 72 . . . . . . Regen/Repaired (Parts) 140 | . . . . . . . . . . . . . 140 . . . . . . Core Remaining (%) 53 | 100 82 45 32 . 90 . . . . 69 . 2 . . 9 . . . . Volleys Fired 455 | . 50 43 54 . 6 . 18 21 68 10 21 64 66 . . 19 8 7 . Largest 2 | . 2 2 2 . 2 . 1 1 2 2 1 1 2 . . 2 1 1 . Hottest 176 | . 85 130 130 . 40 . 70 70 70 150 33 75 169 . . 176 7 113 . Shots Fired 665 | . 100 71 108 . 7 . 18 21 76 15 21 64 114 . . 36 8 6 . Gun 377 | . 100 71 11 . . . . . 15 5 . 28 109 . . 36 . 2 . Cannon 243 | . . . 97 . 6 . 18 21 52 10 15 21 . . . . . 3 . Launcher 2 | . . . . . 1 . . . . . . . 1 . . . . . . Special 43 | . . . . . . . . . 9 . 6 15 4 . . . 8 1 . Kinetic 380 | . 94 14 98 . 6 . 18 21 67 5 15 21 . . . 20 . 1 . Thermal 185 | . 6 44 10 . . . . . . 5 . 2 98 . . 16 . 4 . Explosive 2 | . . . . . 1 . . . . . . . 1 . . . . . . Electromagnetic 55 | . . 13 . . . . . . . 5 . 26 11 . . . . . . Robot Hit Streak 15 | . 5 13 8 . 4 . 5 5 15 6 5 15 15 . . 10 3 4 . Robot Miss Streak 7 | . 7 3 4 . 1 . 2 4 5 4 1 2 4 . . 2 1 . . Penetration Max . | . . . . . . . . . . . . . . . . . . . . Secondary Targets 8 | . 1 2 . . . . . . . . . . 2 . . 3 . . . Max Gunslinging Chain 1 | . 1 1 . . . . . . . . . . 1 . . 1 . . . Shots Hit Robots 473 | . 54 44 67 . 5 . 12 12 44 9 14 75 93 . . 26 16 2 . Core Hits 184 | . 21 21 26 . 2 . 4 6 22 1 5 23 38 . . 14 1 . . Critical Kills 3 | . . . . . . . . . . 1 . 1 . . . 1 . . . Critical Parts Destroyed 10 | . . . . . . . . . 3 . . . 1 . . 1 5 . . Critical Strikes 36 | . . 1 4 . 1 . 1 2 9 2 . 4 5 . . 2 5 . . Burn 2 | . . 1 . . . . . . . . . . 1 . . . . . . Meltdown 1 | . . . . . . . . . . 1 . . . . . . . . . Destroy 6 | . . . . . . . . . 3 . . . 1 . . 2 . . . Blast 16 | . . . 4 . 1 . 1 2 6 1 . 1 . . . . . . . Corrupt 1 | . . . . . . . . . . . . . 1 . . . . . . Smash 6 | . . . . . . . . . . . . 1 . . . . 5 . . Sever 4 | . . . . . . . . . . . . 2 2 . . . . . . Melee Attacks 74 | . . . . . . . . . . . . 42 16 . . 1 15 . . Impact 21 | . . . . . . . . . . . . 5 . . . 1 15 . . Slashing 53 | . . . . . . . . . . . . 37 16 . . . . . . Piercing . | . . . . . . . . . . . . . . . . . . . . Sneak Attacks 7 | . . . . . . . . . . . . 5 2 . . . . . . Combat Hostiles . | . . . . . . . . . . . . . . . . . . . . Follow-up Attacks 2 | . . . . . . . . . . . . 2 . . . . . . . Damage Inflicted 16010 | . 756 704 1932 . 183 38 1197 936 2848 314 332 2585 2928 . . 671 546 40 . Guns 4791 | . 738 659 96 . . . . . 199 97 . 377 2011 . . 587 . 27 . Cannons 7573 | . . . 1825 . 128 . 1144 908 2545 217 330 476 . . . . . . . Explosions 670 | . . 43 . . 52 . . . . . . 203 372 . . . . . . Melee 2653 | . . . . . . . . . . . . 1529 543 . . 51 530 . . Ramming 323 | . 18 2 11 . 3 38 53 28 104 . 2 . 2 . . 33 16 13 . Kinetic 8772 | . 673 143 1843 . 115 . 1144 908 2744 120 330 476 . . . 276 . . . Thermal 3312 | . 65 475 78 . . . . . . 97 . 153 2106 . . 311 . 27 . Explosive 97 | . . . . . 52 . . . . . . . 45 . . . . . . Electromagnetic 840 | . . 84 . . . . . . . 97 . 427 232 . . . . . . Impact 769 | . . . . . 13 . . . . . . 175 . . . 51 530 . . Slashing 1897 | . . . . . . . . . . . . 1354 543 . . . . . . Piercing . | . . . . . . . . . . . . . . . . . . . . Highest Corruption 37 | . . . . . . . 2 2 2 2 . 37 3 3 3 13 26 26 28 Average Corruption 5 | . . . . . . . 2 2 2 2 . 6 2 3 3 3 17 26 26 Corruption Purged . | . . . . . . . . . . . . . . . . . . . . Corruption Blocked . | . . . . . . . . . . . . . . . . . . . . Effects 117 | . . . . . . . 9 10 22 7 . 22 2 2 . 5 13 23 2 Message Errors 33 | . . . . . . . 5 4 6 5 . 5 . . . . 4 3 1 Matter Fused 21 | . . . . . . . . 2 6 . . 4 2 . . 1 2 4 . Heat Flow Errors 12 | . . . . . . . . 1 . 1 . 4 . 1 . 1 3 1 . Energy Discharges 10 | . . . . . . . 3 . 2 . . 1 . . . 1 2 1 . Parts Rejected 1 | . . . . . . . . . 1 . . . . . . . . . . Parts Fused 1 | . . . . . . . . . . . . 1 . . . . . . . Data Loss (minor) 15 | . . . . . . . . 2 4 1 . 3 . . . 1 2 1 1 Data Loss (major) 9 | . . . . . . . . 1 1 . . 3 . 1 . . . 3 . Misfires 1 | . . . . . . . . . 1 . . . . . . . . . . Alerts 2 | . . . . . . . 1 . . . . 1 . . . . . . . Misdirections 9 | . . . . . . . . . . . . . . . . . . 9 . Weapon Failures 3 | . . . . . . . . . 1 . . . . . . 1 . 1 . Overload Shots . | . . . . . . . . . . . . . . . . . . . . Overflow Damage 1340 | . . . 18 . . . 91 88 326 . . 231 223 . . 28 335 . . Projectiles 526 | . . . 18 . . . 91 88 326 . . 3 . . . . . . . Explosions 264 | . . . . . . . . . . . . 41 223 . . . . . . Melee 550 | . . . . . . . . . . . . 187 . . . 28 335 . . Knockbacks 58 | . . . 23 . 2 . 1 2 16 1 4 5 . . . 2 1 1 . Impact 8 | . . . . . . . 1 . 2 . . 1 . . . 2 1 1 . Kinetic 45 | . . . 20 . 2 . . 2 13 1 4 3 . . . . . . . Secondary 5 | . . . 3 . . . . . 1 . . 1 . . . . . . . Self-Inflicted Damage 240 | . . 25 . . 28 17 10 . . . 1 69 68 . . . 16 6 . Shots 4 | . . 1 . . 1 . . . . . . 1 1 . . . . . . Rammed 42 | . . 1 5 . 1 4 10 2 12 . 1 . . . . 2 . 4 . Targets Rammed 70 | . 5 1 6 . 1 4 10 2 24 . 1 . 2 . . 10 . 4 . Kicked 27 | . 5 . . . . . . . 12 . . . 2 . . 8 . . . Crushed 1 | . . . 1 . . . . . . . . . . . . . . . . Highest Temperature 429 | . 48 126 90 . . . 313 108 100 429 6 153 73 97 . 315 167 90 . Average Temperature 77 | . 14 46 36 . . . 163 58 41 244 6 61 24 54 . 108 67 43 . Received Heat Transfer 4017 | . 87 249 1026 . . . . . 741 126 84 473 644 . . 159 392 36 . Siege Activations 3 | . . . . . . . . . 3 . . . . . . . . . . Total Turns 36 | . . . . . . . . . 36 . . . . . . . . . . Longest Duration 14 | . . . . . . . . . 14 . . . . . . . . . . Martial Activations . | . . . . . . . . . . . . . . . . . . . . Shielding Activations . | . . . . . . . . . . . . . . . . . . . . Robots Disrupted . | . . . . . . . . . . . . . . . . . . . . Combat Hostiles . | . . . . . . . . . . . . . . . . . . . . Robots Corrupted 6 | . . . . . . . . . . . . 2 1 . . 1 2 . . Combat Hostiles 6 | . . . . . . . . . . . . 2 1 . . 1 2 . . Parts Fried 12 | . . . . . . . . . . . . 1 1 . . 2 8 . . Impact Corruptions 12 | . . . 1 . . . . . . . . 1 . . . 2 8 . . Robots Melted 2 | . . . . . . . . . . 1 . . 1 . . . . . . Combat Hostiles 2 | . . . . . . . . . . 1 . . 1 . . . . . . Parts Melted 14 | . . . . . . . . . . 2 . . 12 . . . . . . Heat Transferred 5149 | . 148 1123 185 . . . . . . 150 . 137 2925 . . 444 . 37 . Parts Sabotaged . | . . . . . . . . . . . . . . . . . . . . Parts Stolen . | . . . . . . . . . . . . . . . . . . . . Parts Stripped . | . . . . . . . . . . . . . . . . . . . . Power Chain Reactions 4 | . . 1 . . . . . . . . . 3 . . . . . . . Alert | -11 -10 -9 -8 -7 -7 -6 -6 -6 -6 -6 -5 -5 -4 -4 -4 -3 -3 -3 -3 ------- Run | Yrd Mat Mat Mat Fac DSF Fac Was Fac Gar Fac Fac Ext Fac Upp Upp Res Gar Res Gar Maximum Alert Level 2 | . . . 2 . . . . . 2 1 1 . 1 . . . . . . Low Security (%) 81 | 100 100 100 78 100 100 100 100 100 24 26 87 100 94 . . 100 100 100 100 Level 1 7 | . . . 17 . . . . . 8 73 12 . 5 . . . . . . Level 2 10 | . . . 3 . . . . . 66 . . . . . . . . . . Level 3 . | . . . . . . . . . . . . . . . . . . . . Level 4 . | . . . . . . . . . . . . . . . . . . . . Level 5 . | . . . . . . . . . . . . . . . . . . . . High Security . | . . . . . . . . . . . . . . . . . . . . Max Security . | . . . . . . . . . . . . . . . . . . . . Peak Influence 652 | . 158 165 408 170 199 178 58 41 652 336 286 140 248 . . 65 192 108 65 Initial 336 | . . . 37 170 119 93 58 . 6 336 72 140 51 . . 55 . 108 35 Average 124 | . 48 88 121 170 154 136 2 6 400 242 132 43 57 . . 33 73 80 40 Influence Increases 5062 | . 278 406 627 . 80 135 5 118 726 73 586 727 653 30 . 127 292 169 30 Destroy 0b10 Robot/C 2200 | . 140 300 260 . 40 . . 60 320 40 100 400 380 . . 100 60 . . Destroy 0b10 Robot/NC 145 | . 30 15 15 . . . . 20 15 . . 45 . . . . 5 . . Destroy Leader 352 | . 32 62 62 . 10 . . 30 20 10 10 56 40 . . 10 10 . . Allied During Kill 53 | . . . . . . . . . . . . 51 . . . . 2 . . Trap Triggered on 0b10 40 | . . . . . . . . . 10 . 30 . . . . . . . . Successful Hack 95 | . 28 13 17 . . . . . . 18 12 7 . . . . . . . Disable Machine 165 | . . . 45 . . . . . . . 15 45 45 . . 15 . . . Anti-Garrison Action 450 | . . . 150 . . . . . 250 . . . . . . . 50 . . Destroy Structure 212 | . 3 16 18 . . . 5 8 21 5 14 48 68 . . 2 . 4 . Partial Spotted 90 | . . . . . . 30 . . . . 15 . . . . . 15 . 30 Lose Combat Pursuer 1260 | . 45 . 60 . 30 105 . . 90 . 390 75 120 30 . . 150 165 . Influence Decreases 5057 | . 278 317 342 204 71 146 173 109 93 566 449 908 528 156 21 210 100 314 72 Entered New Map 1320 | . . . 52 204 51 86 110 . 3 306 77 146 54 86 21 28 . 84 12 Time Decay 2282 | . 278 207 200 . . 40 43 89 . 230 222 368 275 60 . 120 . 150 . Search Patrol Dispatched 100 | . . . . . . . . . . . 100 . . . . . . . . Lost Part 1140 | . . 110 90 . 20 20 20 20 70 30 30 239 199 10 . 62 100 60 60 Lost Ally 215 | . . . . . . . . . 20 . 20 155 . . . . . 20 . Squads Dispatched 37 | . 1 1 6 . 2 2 . 2 . 2 1 4 5 . . 4 . 7 . Investigation 13 | . . . 1 . . . . 1 . 1 1 2 2 . . 1 . 4 . Extermination 4 | . . . . . . . . . . . . . 2 . . 1 . 1 . Reinforcement 14 | . 1 1 1 . 2 2 . 1 . 1 . 2 1 . . . . 2 . Assault 2 | . . . 2 . . . . . . . . . . . . . . . . Garrison 4 | . . . 2 . . . . . . . . . . . . 2 . . . Intercept . | . . . . . . . . . . . . . . . . . . . . Searches Triggered 1 | . . . . . . . . . . . 1 . . . . . . . . Construction Impeded 3 | . . . 1 . . . . . . . . 1 . . . . . 1 . Haulers Reinforced . | . . . . . . . . . . . . . . . . . . . . Active Scanning Responses . | . . . . . . . . . . . . . . . . . . . . Cargo Convoy Interrupts . | . . . . . . . . . . . . . . . . . . . . Stealth | -11 -10 -9 -8 -7 -7 -6 -6 -6 -6 -6 -5 -5 -4 -4 -4 -3 -3 -3 -3 --------- Run | Yrd Mat Mat Mat Fac DSF Fac Was Fac Gar Fac Fac Ext Fac Upp Upp Res Gar Res Gar Distress Signals 9 | . 1 2 1 . . . . . . . . 3 1 . . . . 1 . Communications Jammed . | . . . . . . . . . . . . . . . . . . . . Distress Signals . | . . . . . . . . . . . . . . . . . . . . Times Spotted 305 | . 18 21 36 . 9 9 . 5 23 4 33 32 36 3 . 14 22 34 6 Peak Tracking Total 16 | . 4 14 16 . 5 8 . 4 9 2 12 6 8 3 . 5 14 14 6 Tactical Retreats 37 | . 2 . 2 . 2 3 . . 3 . 6 3 4 2 . . 4 6 . Traps | -11 -10 -9 -8 -7 -7 -6 -6 -6 -6 -6 -5 -5 -4 -4 -4 -3 -3 -3 -3 ------- Run | Yrd Mat Mat Mat Fac DSF Fac Was Fac Gar Fac Fac Ext Fac Upp Upp Res Gar Res Gar Traps Triggered 25 | . 2 . . . 4 1 . . 6 2 2 2 . . . 1 4 1 . Indirectly . | . . . . . . . . . . . . . . . . . . . . Trap Hack Attempts . | . . . . . . . . . . . . . . . . . . . . Triggered . | . . . . . . . . . . . . . . . . . . . . Disarmed . | . . . . . . . . . . . . . . . . . . . . Reprogrammed . | . . . . . . . . . . . . . . . . . . . . Reused 4 | . . . . . . . . . 1 . 3 . . . . . . . . Traps Extracted . | . . . . . . . . . . . . . . . . . . . . Installed 5 | . . . . . . . . . 2 . 3 . . . . . . . . Triggered 4 | . . . . . . . . . 1 . 3 . . . . . . . . Most Traps Carried 5 | . . . . . . . . . 5 3 3 . . . . . . . . Objects Rigged 8 | . . . . . . . . . . 8 . . . . . . . . . Machines | -11 -10 -9 -8 -7 -7 -6 -6 -6 -6 -6 -5 -5 -4 -4 -4 -3 -3 -3 -3 ---------- Run | Yrd Mat Mat Mat Fac DSF Fac Was Fac Gar Fac Fac Ext Fac Upp Upp Res Gar Res Gar Machines Disabled 17 | . . . 4 . . . . . 3 . 1 4 3 . . 1 1 . . Max in Single Turn 3 | . . . 1 . . . . . 1 . 1 1 3 . . 1 1 . . Garrison Access 1 | . . . 1 . . . . . . . . . . . . . . . . Garrison Relay 4 | . . . . . . . . . 3 . . . . . . . 1 . . Machines Repaired . | . . . . . . . . . . . . . . . . . . . . Machines Dismantled . | . . . . . . . . . . . . . . . . . . . . Machines Sabotaged . | . . . . . . . . . . . . . . . . . . . . Overloaded Fab Kills . | . . . . . . . . . . . . . . . . . . . . Hacking | -11 -10 -9 -8 -7 -7 -6 -6 -6 -6 -6 -5 -5 -4 -4 -4 -3 -3 -3 -3 --------- Run | Yrd Mat Mat Mat Fac DSF Fac Was Fac Gar Fac Fac Ext Fac Upp Upp Res Gar Res Gar Machines Accessed 43 | . 7 4 2 2 . 2 . 2 1 3 4 5 2 . . 2 1 6 . Terminals 30 | . 6 1 2 2 . . . 1 1 2 3 5 1 . . . 1 5 . Fabricators 1 | . . . . . . 1 . . . . . . . . . . . . . Repair Stations 4 | . . 1 . . . 1 . . . . . . 1 . . 1 . . . Recycling Units 3 | . 1 1 . . . . . . . 1 . . . . . . . . . Scanalyzers 2 | . . 1 . . . . . . . . 1 . . . . . . . . Garrison Access 3 | . . . . . . . . 1 . . . . . . . 1 . 1 . Total Hacks 110 | . 29 15 6 2 . 5 . 3 2 8 8 13 4 . . 3 2 10 . Successful 38 | . 15 8 2 1 . . . 1 . 2 2 3 2 . . 1 . 1 . Failed 72 | . 14 7 4 1 . 5 . 2 2 6 6 10 2 . . 2 2 9 . Catastrophic 16 | . 2 . 1 . . 1 . 2 . 1 1 3 . . . 1 . 4 . Database Lockouts . | . . . . . . . . . . . . . . . . . . . . Manual 29 | . 14 . 2 . . . . . . 1 . 8 3 . . . . 1 . Terminals 77 | . 25 3 6 2 . . . 2 2 5 5 13 3 . . . 2 9 . Fabricators 1 | . . . . . . 1 . . . . . . . . . . . . . Repair Stations 10 | . . 3 . . . 4 . . . . . . 1 . . 2 . . . Recycling Units 11 | . 4 4 . . . . . . . 3 . . . . . . . . . Scanalyzers 8 | . . 5 . . . . . . . . 3 . . . . . . . . Garrison Access 3 | . . . . . . . . 1 . . . . . . . 1 . 1 . Terminal Hacks 11 | . 4 1 1 1 . . . . . . 1 2 1 . . . . . . Robot Analysis 3 | . 2 . 1 . . . . . . . . . . . . . . . . Open Door 2 | . . . . . . . . . . . 1 1 . . . . . . . Open DSF 1 | . . . . 1 . . . . . . . . . . . . . . . Terminal Index 1 | . . 1 . . . . . . . . . . . . . . . . . Alert Level 1 | . . . . . . . . . . . . . 1 . . . . . . Locate Traps 2 | . 2 . . . . . . . . . . . . . . . . . . Zone Layout 1 | . . . . . . . . . . . . 1 . . . . . . . Fabricator Hacks . | . . . . . . . . . . . . . . . . . . . . Repair Station Hacks 1 | . . 1 . . . . . . . . . . . . . . . . . Refit 1 | . . 1 . . . . . . . . . . . . . . . . . Recycling Unit Hacks 4 | . 2 1 . . . . . . . 1 . . . . . . . . . Report Inventory 3 | . 1 1 . . . . . . . 1 . . . . . . . . . Retrieve Components 1 | . 1 . . . . . . . . . . . . . . . . . . Scanalyzer 6 | . . 5 . . . . . . . . 1 . . . . . . . . Retrieve Study 6 | . . 5 . . . . . . . . 1 . . . . . . . . Garrison Access Hacks 3 | . . . . . . . . 1 . . . . . . . 1 . 1 . Unlock Access 3 | . . . . . . . . 1 . . . . . . . 1 . 1 . Unauthorized Hacks 13 | . 9 . 1 . . . . . . 1 . 1 1 . . . . . . Terminals 12 | . 9 . 1 . . . . . . 1 . 1 . . . . . . . Botnet 5 | . 4 . . . . . . . . . . 1 . . . . . . . Detonate 1 | . . . . . . . . . . 1 . . . . . . . . . Operators 1 | . . . 1 . . . . . . . . . . . . . . . . Skim 5 | . 5 . . . . . . . . . . . . . . . . . . Fabricators . | . . . . . . . . . . . . . . . . . . . . Repair Stations 1 | . . . . . . . . . . . . . 1 . . . . . . Patch 1 | . . . . . . . . . . . . . 1 . . . . . . Recycling Units . | . . . . . . . . . . . . . . . . . . . . Scanalyzers . | . . . . . . . . . . . . . . . . . . . . Garrison Access . | . . . . . . . . . . . . . . . . . . . . Data Cores Recovered 1 | . 1 . . . . . . . . . . . . . . . . . . Used 1 | . 1 . . . . . . . . . . . . . . . . . . Hacking Detections 37 | . 7 4 2 1 . 2 . 1 1 3 3 4 1 . . 1 1 6 . Full Trace Events 15 | . . 3 1 . . . . 1 . 1 1 2 1 . . 1 . 4 . Feedback Events 1 | . . . . . . . . . . . . . . . . 1 . . . Corruption 1 | . . . . . . . . . . . . . . . . 1 . . . Feedback Blocked . | . . . . . . . . . . . . . . . . . . . . Robot Schematics Acquired . | . . . . . . . . . . . . . . . . . . . . Robots Built . | . . . . . . . . . . . . . . . . . . . . Authchips . | . . . . . . . . . . . . . . . . . . . . Time . | . . . . . . . . . . . . . . . . . . . . Total Robot Build Rating . | . . . . . . . . . . . . . . . . . . . . Part Schematics Acquired . | . . . . . . . . . . . . . . . . . . . . Parts Built . | . . . . . . . . . . . . . . . . . . . . Authchips . | . . . . . . . . . . . . . . . . . . . . Time . | . . . . . . . . . . . . . . . . . . . . Total Part Build Rating . | . . . . . . . . . . . . . . . . . . . . Part Studies Acquired 6 | . . 5 . . . . . . . . 1 . . . . . . . . Parts Repaired . | . . . . . . . . . . . . . . . . . . . . Time . | . . . . . . . . . . . . . . . . . . . . Parts Recycled . | . . . . . . . . . . . . . . . . . . . . Recycled Matter . | . . . . . . . . . . . . . . . . . . . . Retrieved Matter . | . . . . . . . . . . . . . . . . . . . . Retrieved Components 10 | . 10 . . . . . . . . . . . . . . . . . . Parts Scanalyzed . | . . . . . . . . . . . . . . . . . . . . Part Schematics Acquired . | . . . . . . . . . . . . . . . . . . . . Parts Damaged . | . . . . . . . . . . . . . . . . . . . . Bothacking | -11 -10 -9 -8 -7 -7 -6 -6 -6 -6 -6 -5 -5 -4 -4 -4 -3 -3 -3 -3 ------------ Run | Yrd Mat Mat Mat Fac DSF Fac Was Fac Gar Fac Fac Ext Fac Upp Upp Res Gar Res Gar Used RIF Installer 2 | . . . . . . . . . 1 . . . . . . . 1 . . Robot Detection 1 | . . . . . . . . . . . . . . . . . 1 . . Robots Hacked 15 | . . . . . . . . . 2 . 3 4 1 . . . 4 1 . Non-combat 3 | . . . . . . . . . . . 2 1 . . . . . . . Combat 12 | . . . . . . . . . 2 . 1 3 1 . . . 4 1 . Robot Hacks Applied 19 | . . . . . . . . . 2 . 4 5 3 . . . 4 1 . find_chute 1 | . . . . . . . . . . . 1 . . . . . . . . map_route 1 | . . . . . . . . . . . 1 . . . . . . . . find_garrison 1 | . . . . . . . . . . . 1 . . . . . . . . link_fov 1 | . . . . . . . . . . . . 1 . . . . . . . scatter_targeting 1 | . . . . . . . . . . . . 1 . . . . . . . amplify_resonance 5 | . . . . . . . . . 1 . . . 1 . . . 3 . . reboot_system 1 | . . . . . . . . . . . . . 1 . . . . . . overwrite_iff 3 | . . . . . . . . . 1 . . . 1 . . . 1 . . formatsys_high 5 | . . . . . . . . . . . 1 3 . . . . . 1 . Relay Couplers Released 14 | . . . 1 . . . . . 10 . . . . . . . 3 . . Machine Destruction 14 | . . . 1 . . . . . 10 . . . . . . . 3 . . Attached 13 | . . . . . . . . . 5 . 2 3 . . . . 3 . . Fabnet Peak Effective % . | . . . . . . . . . . . . . . . . . . . . Robots Rewired 10 | . . . . . . . . . . . . 10 . . . . . . . Allies Hacked . | . . . . . . . . . . . . . . . . . . . . Hacks Repelled . | . . . . . . . . . . . . . . . . . . . . Allies | -11 -10 -9 -8 -7 -7 -6 -6 -6 -6 -6 -5 -5 -4 -4 -4 -3 -3 -3 -3 -------- Run | Yrd Mat Mat Mat Fac DSF Fac Was Fac Gar Fac Fac Ext Fac Upp Upp Res Gar Res Gar Total Allies 19 | . . . . . . . . . 1 . 1 14 1 . . . 1 1 . Largest Group 10 | . . . . . . . . . 1 . 1 10 1 . . . 1 1 . Highest-Rated Group 323 | . . . . . . . . . 12 . 49 323 48 . . . 47 64 . Highest-Rated Ally 159 | . . . . . . . . . 12 . 49 159 48 . . . 47 64 . Total Orders 2 | . . . . . . . . . . . . 2 . . . . . . . STAY 1 | . . . . . . . . . . . . 1 . . . . . . . FOLLOW 1 | . . . . . . . . . . . . 1 . . . . . . . Ally Attacks 84 | . . . . . . . . . 1 . 1 75 1 . . . 3 3 . Total Damage 2119 | . . . . . . . . . 16 . 23 1811 37 . . . 114 118 . Kills 11 | . . . . . . . . . . . . 11 . . . . . . . Allies Corrupted . | . . . . . . . . . . . . . . . . . . . . Allies Melted . | . . . . . . . . . . . . . . . . . . . . Intel | -11 -10 -9 -8 -7 -7 -6 -6 -6 -6 -6 -5 -5 -4 -4 -4 -3 -3 -3 -3 ------- Run | Yrd Mat Mat Mat Fac DSF Fac Was Fac Gar Fac Fac Ext Fac Upp Upp Res Gar Res Gar Active Infowar (turns) 4805 | . 711 332 538 15 129 82 475 . . . 40 1088 343 139 17 262 263 319 52 Optics 1922 | . . . . . . . . . . . . 527 343 139 17 262 263 319 52 Sensors 518 | . . . . . . . . . . . 40 245 . . . 90 143 . . Terrain 324 | . . 141 . . . . . . . . . . . . . . . 158 25 Structural 1823 | . 711 40 378 . . . . . . . . 694 . . . . . . . Seismic 330 | . . 330 . . . . . . . . . . . . . . . . . Machine Analysis 1050 | . . . 349 15 129 82 475 . . . . . . . . . . . . ECM 1 | . . . . . . . . . . . . 1 . . . . . . . Robot Analysis Total 3 | . 2 . 1 . . . . . . . . . . . . . . . . Derelict Logs Recovered 1 | . . . . . . . . . . . . . . 1 . . . . . Drone Launches . | . . . . . . . . . . . . . . . . . . . . Drone Recoveries . | . . . . . . . . . . . . . . . . . . . . Exploration | -11 -10 -9 -8 -7 -7 -6 -6 -6 -6 -6 -5 -5 -4 -4 -4 -3 -3 -3 -3 ------------- Run | Yrd Mat Mat Mat Fac DSF Fac Was Fac Gar Fac Fac Ext Fac Upp Upp Res Gar Res Gar Turns Passed 8771 | 8 920 470 539 15 129 82 692 478 1353 489 477 1397 670 139 17 262 263 319 52 Spaces Moved 6755 | 7 610 300 185 26 118 235 507 184 644 298 717 1193 318 276 34 135 255 592 121 Core 757 | . 1 9 50 26 44 . . . . . 25 36 15 276 34 38 76 116 11 Treads 939 | . . 83 135 . . . 206 159 63 . . 95 196 . . 2 . . . Legs 1057 | 7 598 . . . . . . . 44 158 60 79 16 . . 95 . . . Wheels 1671 | . 11 146 . . 4 . . 25 537 140 . 808 . . . . . . . Hover 496 | . . 62 . . . . . . . . . 120 91 . . . 179 21 23 Flight 1835 | . . . . . 70 235 301 . . . 632 55 . . . . . 455 87 Fastest Speed 26 | 120 80 70 50 50 26 29 34 130 100 115 29 29 50 50 50 50 50 37 37 Average Speed 95 | 120 119 109 170 50 39 32 116 226 162 149 45 79 126 50 50 110 54 41 42 Slowest Speed 400 | 120 350 320 400 50 90 35 240 240 240 190 190 200 200 50 50 180 60 61 60 Overloaded Moves 30 | . . . . . 30 . . . . . . . . . . . . . . Propulsion Burnouts . | . . . . . . . . . . . . . . . . . . . . Robots Hopped 34 | . . . . . 1 6 . . . . 12 . . . . . . 12 3 Potential Cave-ins . | . . . . . . . . . . . . . . . . . . . . Cave-ins Triggered . | . . . . . . . . . . . . . . . . . . . . Exploration Rate (%) 33 | 2 88 37 19 1 86 9 96 5 64 8 12 52 11 57 10 3 60 31 28 Regions Visited 19 Branch Regions 3 Pre-discovered Areas . | . . . . . . . . . . . . . . . . . . . . Known Exits Taken 6 | . . . . 1 . . . 1 . . 1 1 . . . 1 . 1 . Unknown Exits Taken 8 | 1 1 1 1 . . . . . . 1 . . 1 1 1 . . . . Scrap Searched 1 | . . . . . . . . . . . . . . 1 . . . . . Spaces Dug 4 | . . . . . . . . . . . . 1 . . . . . 3 . Terrain Destroyed 122 | . . 13 17 . . . 5 8 15 5 5 12 37 . . 2 . 3 . Melee 1 | . . . . . . . . . . . . 1 . . . . . . . Projectile 68 | . . . 17 . . . 5 8 15 5 5 7 1 . . 2 . 3 . AOE 53 | . . 13 . . . . . . . . . 4 36 . . . . . . Terrain Rammed 1 | . . . . . . . . . . . . . . . . . 1 . . Walls Destroyed . | . . . . . . . . . . . . . . . . . . . . Machines Disabled . | . . . . . . . . . . . . . . . . . . . . Actions | -11 -10 -9 -8 -7 -7 -6 -6 -6 -6 -6 -5 -5 -4 -4 -4 -3 -3 -3 -3 --------- Run | Yrd Mat Mat Mat Fac DSF Fac Was Fac Gar Fac Fac Ext Fac Upp Upp Res Gar Res Gar Total 8197 | 6 695 369 296 28 191 234 572 209 836 324 838 1513 462 276 33 196 351 649 119 Wait 193 | . 1 . 6 . 1 . 7 . 24 . 55 68 11 1 . . . 19 . Move 6679 | 6 609 299 184 26 115 225 506 183 643 297 692 1192 318 275 33 135 254 570 117 Hop 28 | . . . . . 1 4 . . . . 12 . . . . . . 10 1 Pick Up 89 | . 8 6 8 1 4 1 10 . 19 . 5 11 9 . . 4 2 1 . Fast Attach 140 | . 6 4 5 . 8 . 6 3 12 3 9 35 14 . . 16 4 15 . Attach 73 | . 1 7 7 . 4 . 7 . 4 1 5 9 9 . . 4 8 7 . Detach 40 | . 1 1 3 . 2 . 2 . 2 1 4 5 3 . . 2 4 10 . Swap 49 | . 7 6 7 . . . 1 . 2 . 1 15 7 . . 3 . . . Drop 90 | . 7 2 16 1 4 . 5 . 21 2 5 8 8 . . 2 3 5 1 Fire 455 | . 50 43 54 . 6 . 18 21 68 10 21 64 66 . . 19 8 7 . Melee 72 | . . . . . . . . . . . . 40 16 . . 1 15 . . Ram 16 | . . 1 . . 1 4 4 . . . 1 . . . . . 1 4 . Kick 26 | . 5 . . . . . . . 12 . . . 1 . . 8 . . . Crush 28 | . . . 6 . . . 6 2 12 . . . . . . 2 . . . Escape Stasis 169 | . . . . . 45 . . . 12 10 24 26 . . . . 52 . . Rewire 45 | . . . . . . . . . 3 . 1 40 . . . . . 1 . Trap 5 | . . . . . . . . . 2 . 3 . . . . . . . . Miscellaneous . | . . . . . . . . . . . . . . . . . . . . Route ------- -11/Scrapyard -10/Materials (discovered 5 exits: *Mat x3 / [*Min x2]) -9/Materials -8/Materials -7/Factory -7/DSF -6/Factory -6/Waste -6/Factory -6/Garrison (discovered 2 exits: *Fac x2) -6/Factory -5/Factory -5/Extension -4/Factory -4/Upper Caves -4/Upper Caves -3/Research -3/Garrison -3/Research -3/Garrison History --------- Turn | Location | Event 1 | -11/Scrapyard | Discovered new exit (range 3) 9 | -11/Scrapyard | Entered Materials 105 | -10/Materials | Discovered new exit (range 8) 315 | -10/Materials | Build established: Mutant 502 | -10/Materials | Discovered new exit (range 7) 642 | -10/Materials | Discovered new exit (range 12) 728 | -10/Materials | Discovered new exit (range 16) 873 | -10/Materials | Discovered new exit (range 12) 929 | -10/Materials | Entered another Materials area 929 | -9/Materials | Evolved 2 slots: Utility x2 1113 | -9/Materials | Lost 5 parts (1p1n1u2w) 1177 | -9/Materials | Destroyed 12 combat bots 1180 | -9/Materials | Lost 4 parts (1p1n1u1w) 1226 | -9/Materials | Core integrity fell below 50% 1370 | -9/Materials | Discovered new exit (range 16) 1399 | -9/Materials | Entered another Materials area 1399 | -8/Materials | Evolved 2 slots: Utility x2 1531 | -8/Materials | Build established: Scavenger-Mutant 1645 | -8/Materials | Garrison activated, responded to threat 1762 | -8/Materials | Garrison activated, responded to threat 1886 | -8/Materials | Lost 4 parts (2n2u) 1916 | -8/Materials | Core integrity fell below 50% 1931 | -8/Materials | Discovered new exit (range 16) 1938 | -8/Materials | Entered Factory 1938 | -7/Factory | Evolved 2 slots: Propulsion x2 1946 | -7/Factory | Lost 5 parts (1p1n3u) 1953 | -7/Factory | Identified exit to DSF 1953 | -7/Factory | Entered DSF 1985 | -7/DSF | Additional patrols routed to DSF 2076 | -7/DSF | Discovered new exit (range 12) 2082 | -7/DSF | Entered Factory 2082 | -6/Factory | Evolved 2 slots: Propulsion x1, Utility x1 2164 | -6/Factory | Manually triggered Chute Trap 2164 | -6/Factory | Sucked down chute 2164 | -6/Factory | Entered Waste 2164 | -6/Waste | The area was eerily silent 2200 | -6/Waste | Found Damper Plating 2282 | -6/Waste | Found Heavy Servo Lattice 2286 | -6/Waste | Discovered new exit (range 14) 2306 | -6/Waste | Found Damper Plating 2447 | -6/Waste | Found Damper Plating 2856 | -6/Waste | Entered Factory 3049 | -6/Factory | Identified exit to Garrison 3334 | -6/Factory | Entered Garrison 3362 | -6/Garrison | Triggered checkpoint 3403 | -6/Garrison | Garrison Relay disabled 3726 | -6/Garrison | Destroyed 7 combat bots 3907 | -6/Garrison | Discovered new exit (range 15) 4020 | -6/Garrison | Installed Relay Interface Framework 4142 | -6/Garrison | Garrison Relay disabled 4170 | -6/Garrison | Garrison Relay disabled 4204 | -6/Garrison | Triggered checkpoint 4277 | -6/Garrison | Lost 4 parts (2n2u) 4430 | -6/Garrison | Triggered checkpoint 4444 | -6/Garrison | Build established: Bothacker-Mutant 4526 | -6/Garrison | Discovered new exit (range 10) 4662 | -6/Garrison | Triggered checkpoint 4687 | -6/Garrison | Entered Factory 4925 | -6/Factory | Discovered new exit (range 5) 4966 | -6/Factory | Lost 3 parts (2n1u) 5176 | -6/Factory | Entered another Factory area 5176 | -5/Factory | Evolved 2 slots: Utility x2 5229 | -5/Factory | Build established: Mutant 5476 | -5/Factory | Search patrols dispatched 5650 | -5/Factory | Discovered new exit (range 10) 5652 | -5/Factory | Identified exit to Extension 5653 | -5/Factory | Build established: Bothacker-Sprinter 5653 | -5/Factory | Entered Extension 5861 | -5/Extension | Lost 3 parts (3n) 5912 | -5/Extension | Lost 10 allies 5999 | -5/Extension | Core integrity fell below 50% 6050 | -5/Extension | Lost 12 parts (2p2n5u3w) 6084 | -5/Extension | Core integrity fell below 20% 6257 | -5/Extension | Spotted B-75 Beast 6420 | -5/Extension | Build established: Scavenger-Mutant 6478 | -5/Extension | Disrupted transfer network 6656 | -5/Extension | Rescued A7 6703 | -5/Extension | Lost 7 parts (1p2n3u1w) 6894 | -5/Extension | Allies destroyed B-75 Beast 6896 | -5/Extension | Spotted B-75 Beast 6924 | -5/Extension | Destroyed B-75 Beast 6932 | -5/Extension | System corruption reached 10% 6939 | -5/Extension | Lost 4 parts (3n1u) 7026 | -5/Extension | Discovered new exit (range 3) 7026 | -5/Extension | Identified exit to Factory 7042 | -5/Extension | System corruption reached 30% 7050 | -5/Extension | Entered Factory 7050 | -4/Factory | Accompanied by 1 ally (A7) 7050 | -4/Factory | Evolved 2 slots: Propulsion x1, Utility x1 7590 | -4/Factory | Core integrity fell below 50% 7602 | -4/Factory | Lost 15 parts (1p4n6u4w) 7686 | -4/Factory | Core integrity fell below 20% 7716 | -4/Factory | Discovered new exit (range 8) 7720 | -4/Factory | Entered Upper Caves 7729 | -4/Upper Caves | Lost 3 parts (1p1n1w) 7856 | -4/Upper Caves | Discovered new exit (range 9) 7859 | -4/Upper Caves | Entered another Upper Caves area 7871 | -4/Upper Caves | Discovered new exit (range 9) 7876 | -4/Upper Caves | Entered Research 7876 | -3/Research | Evolved 2 slots: Power x1, Utility x1 8128 | -3/Research | System corruption reached 10% 8138 | -3/Research | Identified exit to Garrison 8138 | -3/Research | Entered Garrison 8157 | -3/Garrison | Lost 7 parts (1p1n3u2w) 8162 | -3/Garrison | Triggered checkpoint 8166 | -3/Garrison | Garrison Relay disabled 8290 | -3/Garrison | Triggered checkpoint 8314 | -3/Garrison | Lost 4 parts (1p3u) 8351 | -3/Garrison | Core integrity fell below 50% 8377 | -3/Garrison | Discovered new exit (range 21) 8387 | -3/Garrison | Expanded RIF knowledge: Robot Detection 8392 | -3/Garrison | Lost 6 parts (1p2n1u2w) 8401 | -3/Garrison | Entered Research 8499 | -3/Research | Spotted B-86 Titan 8515 | -3/Research | Core integrity fell below 20% 8576 | -3/Research | Lost 4 parts (2n2u) 8625 | -3/Research | Spotted B-86 Titan 8687 | -3/Research | Build established: Mutant 8720 | -3/Research | Identified exit to Garrison 8720 | -3/Research | Entered Garrison 8748 | -3/Garrison | Triggered checkpoint 8770 | -3/Garrison | Triggered checkpoint 8772 | -3/Garrison | Destroyed by S-43 Plague with Heavy Machine Gun Last Messages --------------- 08692_ System corrupted: Matter fused (-4). 08700_ Adv. Terrain Scanner destroyed. 08710_ Detecting nearby Garrison Access. 08720_ Connecting with Garrison Access... >>Unlock Access door unlocked. 08720_ EXIT=UNLOCKED: GARRISON LOCATION=GARRISON GOAL=ESCAPE 08734_ System corrupted: Component data lost. 08748_ Beams of light sweep through the air. An alarm sounds. 08752_ Nuclear Pulse Array destroyed. 08755_ P-80 Master resets P-80 Master, system corruption cleaned. 08764_ Q-thruster destroyed. 08766_ Relay Coupler [Grunt] destroyed. 08766_ Antigrav Array destroyed. 08766_ Dropped Particle Reactor. 08769_ Adv. Terrain Scanner destroyed. 08769_ Enh. Optical Array destroyed. 08770_ 5KMUSI9/J813LCLJVPDQ Map ----- +----------------------------------------------------+ | ??????????????????????????????# #???? | | ??????????????????????????????# #???? | | ??????????????????????????????# #???? | | ??????????????????????????????? ????? | | ???????????????????????????????? ?????? | | ????????????????????????????????# #?????? | | ????????????????????????????##### ####### | | ????????????????????????????# | | ????????????????????????????# | | ????????????????????????????# ########## | | ????????????????????????????# #????????? | | ????????????????????????????# #??#?????? | | ????????????????????????##### ## ??????? | | ????????????????????????# ?# + ???????? | | ????????????????????????# #?# #????????? | | ???????????????????######+### #????????? | | ???????????????????# #????????? | | ???????????????????# * #????????? | | ???????????????????# ##########????????? | | ???????????????????# #?????????????????? | | ???????????????????# #?????????????????? | | ???????????????????# #?????????????????? | | ???????????????????# #?????????????????? | | ???????????????????# #?????????????????? | | ??????????##########s ####### #???????? | | ??????????# @ s #??????? | | ??????????# #??????? | | ??????????# ###########g #######??????? | | ??????????#?????????????? #????????????? | | ??????????????????????????##????????????? | | ????????????????????????????????????????? | | ????????????????????????????????????????? | | ????????????????????????????????????????? | | ????????????????????????????????????????? | | ????????????????????????????????????????? | | ????????????????????????????????????????? | | ????????????????????????????????????????? | | ????????????????????????????????????????? | | ????????????????????????????????????????? | | ????????????????????????????????????????? | | ????????????????????????????????????????? | | ????????????????????????????????????????? | | | | | | | | | | | | | | | | | +----------------------------------------------------+ Best States ------------- Heat Dissipation 108 Coolant Potential 65 Energy Generation 37 Energy Capacity 640 Matter Stores 300 Matter Capacity 300 Sight Range 22 Robot Scan Range 16 Terrain Scan Range 20 Terrain Scan Density 85 Additional Mass Support 9 Armor Coverage 3650 Resistance: KI 30 Resistance: TH 15 Resistance: EM 90 Evasion (%) 64 Targeting Accuracy 6 Melee Accuracy 6 Target Analysis 5 Recoil Reduction 5 Kinecelleration 40 Offensive Hacking 10 Relay Coupler Types 5 Relay Coupler Value 139 Item Schematics ----------------- None Robot Schematics ------------------ None Fabricated ------------ Nothing Repaired ---------- Nothing Studied --------- Wheel | -9/Materials | Hacked Lgt. Ion Engine | -9/Materials | Hacked EM Pulse Gun | -9/Materials | Hacked Assault Rifle | -9/Materials | Hacked Particle Gun | -9/Materials | Hacked VTOL Module | -5/Factory | Hacked Alien Tech Used ----------------- None Achievements -------------- None Challenges ------------ None Game ------ Seed PotentialConceptFlakker Manual? 0 Play Time 01:04:40 Cumulative 1225.6 hours Start 2025.11.21 @ 11:38:25 End 2025.11.21 @ 15:45:14 Sessions 3 Manual Loads 0 Difficulty Rogue Special Mode None Game No. 1505 Rogue 1221 Adventurer 124 Explorer 160 Win Type - Total 57 Types 43/0/8/4/1/0/0/1/0/0 Lore% 93 Gallery% 86 Achievement% 65 Wizard Run 0 Options --------- Layout 0 ASCII 0 Keyboard 1 Movement Numpad Keybinds 0 Fullscreen 2 Font 18/X11 Map View 76x50 Zoom Use 0% Tactical HUD 1 Map Filters NONE Filters NONE Steam 1 RUN: e636f1c3-c6ea-4844-9dd2-8c14da4a64a0